bitfinex/quotes_SOLUSD_20250815
["timestamp","ask_amount","ask_price","bid_price","bid_amount"]
[1755294104098,0.1,185.31,185.3,38.22]
[1755294104303,0.8,185.31,185.3,38.22]
[1755294105315,4.36212886,185.31,185.3,38.22]
[1755294109538,4.36212886,185.31,185.29,38.22]
[1755294109702,3.56212886,185.3,185.29,38.22]
[1755294109911,4.26212886,185.3,185.29,38.22]
[1755294111921,9.65884367,185.3,185.25,4.5262774]
[1755294112121,3.56212886,185.29,185.26,38.22]
[1755294112327,4.2756208,185.28,185.26,38.22]
[1755294112529,3.5756208,185.27,185.26,38.22]
[1755294112725,0.7,185.3,185.26,42.7162774]
[1755294112922,4.27500238,185.29,185.26,38.22]
[1755294113132,4.27500238,185.28,185.27,4.4962774]
[1755294113515,3.57500238,185.28,185.27,4.4962774]
[1755294116235,8.74452838,185.28,185.27,79.2]
[1755294117528,12.76966319,185.28,185.27,70.08381755]
[1755294117936,4.27500238,185.28,185.27,70.08381755]
[1755294118335,12.76964631,185.28,185.27,70.08381755]
[1755294118926,8.27304807,185.28,185.27,70.08381755]
[1755294119820,8.27304807,185.28,185.26,38.22]
[1755294120024,8.27304807,185.27,185.26,38.22]
[1755294120221,8.27304807,185.27,185.25,0.03]
[1755294120421,8.27304807,185.26,185.25,38.25]
[1755294121239,12.76964631,185.26,185.25,38.25]
[1755294121420,12.76964631,185.26,185.25,42.7462774]
[1755294121611,7.57304807,185.26,185.25,48.14438806]
[1755294121810,3.57500238,185.26,185.25,43.64811066]
[1755294122030,3.57500238,185.26,185.25,48.14438806]
[1755294122438,3.57500238,185.26,185.25,118.22820561]
[1755294122829,7.59760076,185.26,185.25,118.22820561]
[1755294123245,7.59760076,185.26,185.25,113.73192821]
[1755294123438,7.59760076,185.26,185.25,118.22820561]
[1755294124746,0.1,185.31,185.25,131.72348226]
[1755294124947,7.64953931,185.3,185.25,127.22720486]
[1755294125244,3.62371891,185.29,185.25,127.22720486]
[1755294125444,3.62371891,185.28,185.25,127.22720486]
[1755294125654,3.62371891,185.27,185.25,127.22720486]
[1755294125834,0.1,185.31,185.25,127.22720486]
[1755294126022,7.65224854,185.3,185.25,127.22720486]
[1755294126346,0.1,185.31,185.29,9.89322272]
[1755294126552,7.65557738,185.3,185.29,5.39694532]
[1755294126847,7.65557738,185.3,185.29,113.82076287]
[1755294127016,3.62664912,185.3,185.29,113.82076287]
[1755294127220,3.62752226,185.3,185.29,113.82076287]
[1755294127421,3.62744488,185.3,185.29,113.82076287]
[1755294127649,3.62744488,185.3,185.29,118.31704027]
[1755294128318,0.1,185.31,185.29,118.31704027]
[1755294129536,0.1,185.31,185.3,9.89293147]
[1755294129843,3.72752535,185.31,185.3,9.89293147]
[1755294130242,0.1,185.31,185.3,9.89293147]
[1755294131953,0.1,185.31,185.3,79.97674902]
[1755294132160,0.1,185.31,185.3,95.08296459]
[1755294133756,1e-08,185.31,185.3,95.08296459]
[1755294134059,1e-08,185.31,185.3,95.62262999]
[1755294135361,0.06,185.33,185.3,95.62262999]
[1755294135362,0.06,185.34,185.31,15.10621557]
[1755294135661,26.0,185.43,185.29,38.34]
[1755294135662,0.66,185.43,185.36,15.10621557]
[1755294135851,0.66,185.42,185.36,57.90249297]
[1755294137273,0.66,185.4,185.36,57.90249297]
[1755294137740,0.66,185.4,185.36,63.29740017]
[1755294141473,0.66,185.41,185.36,63.29740017]
[1755294142278,0.66,185.4,185.36,63.29740017]
[1755294142652,0.66,185.39,185.36,63.29740017]
[1755294143375,4.4962774,185.45,185.36,63.29740017]
[1755294143573,0.66,185.39,185.36,133.38121772]
[1755294144170,0.66,185.39,185.36,128.88494032]
[1755294144354,0.66,185.39,185.36,133.38121772]
[1755294146267,0.66,185.39,185.36,95.08121772]
[1755294146465,0.66,185.39,185.36,133.36121772]
[1755294146670,0.66,185.39,185.36,95.08121772]
[1755294146869,0.66,185.39,185.36,133.36121772]
[1755294148075,0.66,185.39,185.36,95.08121772]
[1755294148277,0.06,185.41,185.36,133.36121772]
[1755294148493,0.66,185.38,185.36,133.34121772]
[1755294148996,0.66,185.38,185.36,63.25740017]
[1755294149792,0.66,185.38,185.36,24.99740017]
[1755294150384,0.66,185.38,185.36,63.23740017]
[1755294151397,0.66,185.38,185.36,24.99740017]
[1755294151575,0.66,185.38,185.36,63.23740017]
[1755294151779,0.66,185.38,185.36,24.99740017]
[1755294151977,0.66,185.38,185.36,63.23740017]
[1755294153186,0.66,185.38,185.36,65.41903617]
[1755294153373,0.66,185.38,185.36,63.25740017]
[1755294154892,0.66,185.38,185.36,63.23740017]
[1755294155604,0.66,185.38,185.36,63.21740017]
[1755294156499,0.66,185.38,185.36,24.99740017]
[1755294156675,0.66,185.38,185.36,63.21740017]
[1755294157483,0.66,185.38,185.36,24.99740017]
[1755294158025,0.66,185.38,185.36,63.19740017]
[1755294158703,0.66,185.38,185.36,24.99740017]
[1755294159198,0.66,185.38,185.36,63.19740017]
[1755294159386,0.66,185.38,185.36,24.99740017]
[1755294159583,0.66,185.38,185.36,63.19740017]
[1755294159785,0.72,185.41,185.36,133.28121772]
[1755294159995,1e-08,185.37,185.36,133.28121772]
[1755294162216,1e-08,185.37,185.36,63.19740017]
[1755294162583,1e-08,185.37,185.36,65.35880317]
[1755294163912,1e-08,185.37,185.36,65.89829389]
[1755294166200,1e-08,185.41,185.4,41.10621557]
[1755294166409,1e-08,185.41,185.4,83.80249297]
[1755294167694,1e-08,185.41,185.4,89.19623622]
[1755294171311,1e-08,185.41,185.4,89.22623622]
[1755294173009,0.67000001,185.41,185.4,51.02623622]
[1755294173212,0.67000001,185.41,185.4,89.22623622]
[1755294174825,0.67000001,185.41,185.4,51.02623622]
[1755294175008,0.67000001,185.41,185.4,89.22623622]
[1755294177922,0.67000001,185.41,185.4,89.20623622]
[1755294178705,0.67000001,185.41,185.4,51.02623622]
[1755294178913,0.67000001,185.41,185.4,89.20623622]
[1755294179113,0.67000001,185.41,185.4,51.02623622]
[1755294179414,0.67000001,185.41,185.4,89.20623622]
[1755294180704,0.67000001,185.41,185.4,51.02623622]
[1755294180905,1e-08,185.41,185.4,89.20623622]
[1755294181410,1e-08,185.41,185.4,168.40623622]
[1755294182609,0.67000001,185.41,185.4,168.40623622]
[1755294183830,1e-08,185.41,185.4,168.40623622]
[1755294187424,0.67000001,185.41,185.4,168.40623622]
[1755294188217,1e-08,185.41,185.4,168.40623622]
[1755294188819,0.67000001,185.41,185.4,168.40623622]
[1755294194649,0.67000001,185.41,185.4,130.22623622]
[1755294194944,0.67000001,185.41,185.4,0.03]
[1755294195169,4.30071652,185.41,185.4,38.21]
[1755294195813,8.33516854,185.41,185.4,38.21]
[1755294197767,11.20512362,185.41,185.4,38.21]
[1755294198258,11.20512362,185.41,185.4,0.03]
[1755294198666,12.82100449,185.41,185.4,0.03]
[1755294199942,8.33516854,185.41,185.4,0.03]
[1755294200143,4.70445203,185.41,185.4,0.03]
[1755294200360,4.03445203,185.41,185.4,0.03]
[1755294201654,4.03445203,185.41,185.4,5.42374325]
[1755294202233,4.03445203,185.41,185.4,9.9095792]
[1755294202466,1e-08,185.41,185.4,25.70579477]
[1755294202935,1e-08,185.41,185.4,25.01579477]
[1755294205274,1e-08,185.41,185.4,25.70579477]
[1755294208174,1e-08,185.41,185.4,104.90579477]
[1755294208873,1e-08,185.41,185.4,104.21579477]
[1755294209367,0.66000001,185.41,185.4,104.21579477]
[1755294210254,0.66000001,185.41,185.4,99.72995882]
[1755294210454,0.66000001,185.41,185.4,104.21579477]
[1755294211171,0.66000001,185.41,185.4,99.72995882]
[1755294211374,0.66000001,185.41,185.4,104.21579477]
[1755294212178,1e-08,185.41,185.4,104.21579477]
[1755294212757,1e-08,185.41,185.4,104.90579477]
[1755294212960,1e-08,185.43,185.41,15.10621557]
[1755294213162,1e-08,185.43,185.42,42.64583595]
[1755294214151,1e-08,185.43,185.42,142.34521299]
[1755294217462,1e-08,185.43,185.42,137.85937704]
[1755294217664,1e-08,185.43,185.42,142.34521299]
[1755294222375,0.66000001,185.43,185.42,137.85937704]
[1755294222577,1e-08,185.43,185.42,142.34521299]
[1755294224785,1e-08,185.43,185.42,140.72710128]
[1755294225390,0.72000001,185.43,185.42,137.85937704]
[1755294225681,0.72000001,185.43,185.42,140.72710128]
[1755294227581,0.72000001,185.43,185.42,137.85937704]
[1755294227964,0.72000001,185.43,185.42,5.39316147]
[1755294232371,1e-08,185.43,185.42,5.39316147]
[1755294232785,0.72000001,185.43,185.42,5.39316147]
[1755294233996,1e-08,185.45,185.42,103.23710128]
[1755294234174,1e-08,185.45,185.44,17.97393981]
[1755294234883,0.72000001,185.45,185.44,84.59257981]
[1755294235094,4.74927972,185.45,185.44,84.59257981]
[1755294236510,8.37600091,185.45,185.44,79.2]
[1755294236686,8.37600091,185.45,185.43,38.16]
[1755294236882,4.74927971,185.44,185.42,38.16]
[1755294237083,4.74927971,185.43,185.42,38.16]
[1755294237487,4.74927971,185.43,185.4,5.42374325]
[1755294237809,4.74927971,185.42,185.4,43.58374325]
[1755294238009,2.86772424,185.44,185.4,43.58374325]
[1755294238312,0.72,185.41,185.4,43.58374325]
[1755294238911,4.75001582,185.41,185.4,43.58374325]
[1755294239681,4.74986015,185.41,185.4,5.42374325]
[1755294239895,8.37703175,185.41,185.4,5.42374325]
[1755294240103,4.74986015,185.41,185.4,5.42374325]
[1755294240806,8.37748856,185.41,185.4,5.42374325]
[1755294241212,4.74986015,185.41,185.4,5.42374325]
[1755294241509,8.37809151,185.41,185.4,5.42374325]
[1755294242110,8.37809151,185.41,185.4,0.03]
[1755294242914,11.24581575,185.41,185.4,0.03]
[1755294243287,11.2455731,185.41,185.4,0.03]
[1755294243782,8.37784886,185.41,185.4,0.03]
[1755294244086,11.2455731,185.41,185.4,0.03]
[1755294244685,12.86345521,185.41,185.4,0.03]
[1755294248532,22.79189344,185.41,185.4,0.03]
[1755294248730,26.0,185.39,185.38,0.03]
[1755294249030,43.5374894,185.39,185.38,0.03]
[1755294249235,44.2574894,185.39,185.38,0.03]
[1755294249401,102.05122726,185.39,185.38,0.03]
[1755294249600,97.52370497,185.39,185.38,0.03]
[1755294250436,15.10621557,185.38,185.36,0.03]
[1755294250749,16.66745953,185.37,185.36,0.03]
[1755294250947,22.7820757,185.37,185.36,0.03]
[1755294251137,22.78217543,185.37,185.36,0.03]
[1755294251448,22.77811401,185.37,185.36,0.03]
[1755294252251,18.25807138,185.37,185.36,0.03]
[1755294253455,33.36428695,185.37,185.36,0.03]
[1755294254048,37.88432958,185.37,185.36,0.03]
[1755294254350,15.10621557,185.36,185.34,0.03]
[1755294254553,54.78906156,185.35,185.34,0.03]
[1755294254756,55.50906156,185.35,185.34,0.03]
[1755294255137,60.90425983,185.35,185.34,0.03]
[1755294255334,76.0104754,185.35,185.34,0.03]
[1755294256062,67.0392627,185.35,185.34,0.03]
[1755294256243,51.02345521,185.35,185.34,0.03]
[1755294258241,47.3954665,185.35,185.34,0.03]
[1755294258438,9.2354665,185.35,185.34,0.03]
[1755294258638,34.5154665,185.35,185.34,0.03]
[1755294260230,4.02986015,185.35,185.34,0.03]
[1755294260547,30.02986015,185.35,185.34,5.42548937]
[1755294262166,30.02986015,185.35,185.34,0.72]
[1755294262369,15.10621557,185.42,185.34,0.72]
[1755294262370,4.48560635,185.41,185.34,5.20560635]
[1755294262543,4.00010531,185.4,185.35,0.69]
[1755294262737,4.00010531,185.39,185.35,5.17560635]
[1755294262959,4.48560635,185.41,185.36,0.69]
[1755294263168,3.99970844,185.4,185.36,0.69]
[1755294263467,3.99970844,185.39,185.36,0.69]
[1755294263631,4.48560635,185.41,185.36,0.69]
[1755294263834,4.00024938,185.4,185.36,0.69]
[1755294264067,4.00024938,185.39,185.37,5.39461617]
[1755294264239,4.48560635,185.41,185.37,5.39461617]
[1755294264442,4.00094663,185.4,185.37,6.08461617]
[1755294264668,4.00094663,185.39,185.37,6.08461617]
[1755294264831,4.48560635,185.41,185.37,6.08461617]
[1755294265046,4.00094883,185.4,185.37,6.08461617]
[1755294265249,4.00094883,185.39,185.37,6.08461617]
[1755294265465,5.14560635,185.41,185.37,6.08461617]
[1755294265676,4.0016547,185.4,185.37,6.08461617]
[1755294265873,4.0016547,185.4,185.37,5.39461617]
[1755294265874,4.0016547,185.39,185.37,5.39461617]
[1755294266073,0.66,185.39,185.37,5.39461617]
[1755294266374,4.00228617,185.38,185.37,5.39461617]
[1755294267154,4.48560635,185.4,185.37,5.39461617]
[1755294267354,4.00334906,185.39,185.37,5.39461617]
[1755294267567,4.48560635,185.4,185.37,0.69]
[1755294267769,4.00333103,185.39,185.37,0.69]
[1755294267962,4.00333103,185.38,185.37,0.69]
[1755294268380,4.00333103,185.38,185.36,5.3949072]
[1755294268682,4.00430178,185.37,185.36,6.0849072]
[1755294269960,30.48560635,185.4,185.36,6.0849072]
[1755294270156,8.49087074,185.39,185.36,5.3949072]
[1755294270374,4.00526439,185.38,185.36,5.3949072]
[1755294270581,31.14560635,185.4,185.36,5.3949072]
[1755294270784,4.0063278,185.39,185.36,5.3949072]
[1755294270969,4.0063278,185.38,185.36,5.3949072]
[1755294271172,0.66,185.39,185.36,5.3949072]
[1755294271471,4.00740649,185.38,185.36,5.3949072]
[1755294271661,0.66,185.39,185.36,5.3949072]
[1755294271861,4.00740539,185.38,185.36,5.3949072]
[1755294272060,4.00740539,185.37,185.36,5.3949072]
[1755294273267,4.00740539,185.37,185.34,18.91362707]
[1755294273578,0.66,185.39,185.34,19.60362707]
[1755294273780,4.00934637,185.38,185.34,19.60362707]
[1755294273969,4.00934637,185.37,185.34,19.60362707]
[1755294274177,0.66,185.39,185.34,19.60362707]
[1755294274378,4.00980378,185.38,185.34,19.60362707]
[1755294274574,4.00980378,185.37,185.34,19.60362707]
[1755294274777,4.00980378,185.36,185.34,19.60362707]
[1755294274989,0.66,185.39,185.34,19.60362707]
[1755294275289,4.01086701,185.38,185.34,19.60362707]
[1755294275465,4.01086701,185.37,185.36,5.3949072]
[1755294276486,4.01086701,185.37,185.35,5.39519827]
[1755294276687,4.01086701,185.36,185.35,5.39519827]
[1755294276873,4.01246548,185.36,185.35,5.39519827]
[1755294278790,4.01246548,185.36,185.35,6.08519827]
[1755294278987,4.01246548,185.36,185.35,5.39519827]
[1755294281962,4.01246548,185.36,185.35,89.77080462]
[1755294282167,0.06,185.41,185.35,103.2588003]
[1755294282375,4.02157405,185.4,185.37,4.48560635]
[1755294282583,4.02157405,185.39,185.38,0.69]
[1755294282777,4.02157405,185.39,185.38,38.16]
[1755294282980,0.06,185.41,185.38,38.16]
[1755294283188,4.02129186,185.4,185.38,38.16]
[1755294283479,0.72,185.41,185.38,38.16]
[1755294283672,4.02176239,185.4,185.38,38.16]
[1755294283873,0.72,185.41,185.38,38.16]
[1755294284074,4.0217635,185.4,185.39,5.39403419]
[1755294284396,4.0217635,185.4,185.39,6.08403419]
[1755294284790,4.0217635,185.4,185.39,5.39403419]
[1755294286279,0.06,185.41,185.39,5.39403419]
[1755294287564,0.06,185.41,185.39,6.11403419]
[1755294288971,0.06,185.41,185.4,38.16]
[1755294289176,0.06,185.41,185.4,43.36560635]
[1755294290582,0.06,185.41,185.4,48.7593496]
[1755294293794,0.06,185.41,185.4,127.9593496]
[1755294298504,1e-08,185.41,185.4,127.9593496]
[1755294301013,1e-08,185.41,185.4,143.06556517]
[1755294303187,1e-08,185.41,185.4,138.57995882]
[1755294303394,1e-08,185.41,185.4,143.06556517]
[1755294304190,1e-08,185.41,185.4,138.57995882]
[1755294304517,1e-08,185.41,185.4,145.22673517]
[1755294305218,1e-08,185.41,185.4,140.77112882]
[1755294305408,1e-08,185.41,185.4,145.25673517]
[1755294306730,1e-08,185.41,185.4,143.63921259]
[1755294309215,1e-08,185.43,185.42,41.10621557]
[1755294309422,1e-08,185.45,185.42,161.85361548]
[1755294309617,1e-08,185.45,185.44,17.97429934]
[1755294309795,1e-08,185.45,185.44,56.11429934]
[1755294310733,1e-08,185.45,185.44,63.11824117]
[1755294311406,1e-08,185.45,185.44,65.27894417]
[1755294314499,1e-08,185.45,185.44,144.47894417]
[1755294315820,1e-08,185.45,185.44,145.15894417]
[1755294322334,1e-08,185.47,185.46,94.30621556]
[1755294322537,1e-08,185.47,185.46,141.94430696]
[1755294322704,1e-08,185.49,185.47,15.10621557]
[1755294323009,1e-08,185.49,185.48,42.61944579]
[1755294323199,1e-08,185.49,185.48,121.81944578]
[1755294324010,1e-08,185.49,185.48,129.37098164]
[1755294325827,0.69,185.56,185.5,41.10621557]
[1755294326130,0.69,185.56,185.55,9.8688287]
[1755294326434,4.70519916,185.56,185.55,47.9888287]
[1755294326615,0.69,185.56,185.55,47.9888287]
[1755294327141,4.70574041,185.56,185.55,47.9888287]
[1755294327437,0.69,185.62,185.56,15.10621557]
[1755294327729,0.69,185.62,185.6,4.47944579]
[1755294327920,0.69,185.62,185.61,38.12]
[1755294328123,4.7034604,185.62,185.61,43.50764075]
[1755294336934,8.30624738,185.62,185.61,43.50764075]
[1755294337239,4.7034604,185.62,185.61,43.50764075]
[1755294338850,4.69252083,185.62,185.61,43.50764075]
[1755294340860,4.69252083,185.62,185.61,38.12]
[1755294343043,4.00252083,185.62,185.61,38.12]
[1755294343246,4.00252083,185.62,185.61,43.50764075]
[1755294343450,4.69252083,185.62,185.61,43.50764075]
[1755294345543,4.00252083,185.62,185.61,43.50764075]
[1755294345740,4.66252083,185.62,185.61,43.50764075]
[1755294349368,4.00252083,185.62,185.61,43.50764075]
[1755294352872,4.0073069,185.62,185.61,43.50764075]
[1755294355666,4.0073069,185.62,185.61,46.37052606]
[1755294356982,4.0073069,185.62,185.61,141.34674163]
[1755294357159,3.61040943,185.65,185.61,154.81584351]
[1755294357353,4.07162957,185.64,185.62,0.67]
[1755294357553,0.06,185.64,185.63,38.1]
[1755294357756,4.07162591,185.64,185.63,38.77]
[1755294358168,4.07162591,185.64,185.63,44.15706028]
[1755294358371,0.06,185.64,185.63,44.15706028]
[1755294358562,0.06,185.64,185.63,47.01994559]
[1755294362268,0.06,185.64,185.63,44.15706028]
[1755294362475,0.06,185.64,185.63,47.01994559]
[1755294362989,0.06,185.64,185.63,46.34994559]
[1755294364075,0.06,185.64,185.63,8.24994559]
[1755294364280,0.06,185.64,185.63,46.32994559]
[1755294368988,0.06,185.64,185.63,126.19994559]
[1755294369389,0.06,185.64,185.63,128.35878259]
[1755294371182,0.72,185.64,185.63,124.82589728]
[1755294371495,0.72,185.64,185.63,125.52994559]
[1755294371787,0.06,185.64,185.63,125.52994559]
[1755294372489,0.06,185.64,185.63,127.68878259]
[1755294374196,0.06,185.64,185.63,128.35878259]
[1755294374378,0.06,185.64,185.63,49.15878259]
[1755294375604,1e-08,185.64,185.63,49.15878259]
[1755294376792,1e-08,185.64,185.63,143.46499816]
[1755294376989,1e-08,185.66,185.65,17.96910088]
[1755294377169,0.67,185.72,185.69,41.10621557]
[1755294377377,4.50979123,185.74,185.71,2.86288531]
[1755294377378,0.67,185.74,185.71,2.86288531]
[1755294377693,0.67,185.74,185.73,2.86288531]
[1755294377894,0.67,185.74,185.73,40.94288531]
[1755294378608,0.67,185.74,185.73,43.4641598]
[1755294378771,0.67,185.74,185.73,38.08]
[1755294382685,0.67,185.74,185.72,38.12]
[1755294384795,0.67,185.74,185.71,38.12]
[1755294387902,4.46850557,185.73,185.7,38.08]
[1755294388125,5.13850557,185.72,185.67,5.38564726]
[1755294388302,26.67,185.71,185.68,38.08]
[1755294388619,0.67,185.7,185.68,38.08]
[1755294388801,0.67,185.69,185.68,38.08]
[1755294389120,0.67,185.69,185.66,38.08]
[1755294389315,7.63720265,185.68,185.66,38.08]
[1755294389513,4.46850557,185.7,185.66,38.08]
[1755294389514,3.61747969,185.67,185.66,38.08]
[1755294389714,4.28747969,185.67,185.66,38.08]
[1755294389931,26.67,185.69,185.66,43.4661884]
[1755294390232,4.28779668,185.68,185.66,43.4661884]
[1755294390411,0.67,185.68,185.66,43.4961884]
[1755294391318,0.67,185.68,185.66,47.96469397]
[1755294391627,26.67,185.69,185.66,47.96469397]
[1755294391826,3.61833321,185.68,185.66,47.96469397]
[1755294392031,0.67,185.69,185.66,47.96469397]
[1755294392412,3.61850685,185.68,185.66,47.96469397]
[1755294392603,26.67,185.71,185.67,0.68]
[1755294392811,3.61869581,185.7,185.69,4.46850557]
[1755294393011,0.67,185.73,185.69,42.58850557]
[1755294393209,7.63853692,185.72,185.69,38.12]
[1755294393409,3.61829893,185.71,185.69,38.12]
[1755294393617,0.67,185.73,185.69,38.12]
[1755294393929,7.63915304,185.72,185.7,5.38502961]
[1755294394115,0.67,185.73,185.71,38.12]
[1755294394310,7.63956687,185.72,185.71,38.12]
[1755294394511,8.30956687,185.72,185.71,38.12]
[1755294395720,4.28860074,185.72,185.71,43.50473964]
[1755294395925,0.06,185.74,185.71,44.18473964]
[1755294396107,3.61888417,185.73,185.71,44.18473964]
[1755294396308,0.06,185.74,185.71,44.18473964]
[1755294396633,3.61854908,185.73,185.71,43.50473964]
[1755294396829,0.73,185.74,185.71,43.50473964]
[1755294397028,3.61871802,185.73,185.71,43.50473964]
[1755294397218,0.06,185.74,185.71,44.18473964]
[1755294398524,3.61888503,185.73,185.71,44.18473964]
[1755294398833,0.06,185.74,185.71,44.18473964]
[1755294399032,3.61894629,185.73,185.72,5.3844497]
[1755294400617,0.06,185.74,185.72,5.3844497]
[1755294400820,0.06,185.74,185.73,38.1]
[1755294401036,3.67981344,185.74,185.73,38.1]
[1755294401344,3.67981344,185.74,185.73,38.78]
[1755294401523,0.06,185.74,185.73,38.78]
[1755294401842,0.06,185.74,185.73,38.1]
[1755294402017,0.06,185.74,185.73,42.56850557]
[1755294402222,0.06,185.74,185.73,38.1]
[1755294402423,0.06,185.74,185.73,43.4841598]
[1755294404823,8.37035164,185.74,185.72,38.06]
[1755294405015,4.28893365,185.73,185.72,38.06]
[1755294405427,8.31030169,185.73,185.72,38.06]
[1755294406923,4.28893365,185.73,185.72,38.06]
[1755294407135,8.32073812,185.73,185.72,38.06]
[1755294407917,13.70490551,185.73,185.66,79.23]
[1755294408240,8.32073812,185.72,185.67,42.56850557]
[1755294408418,8.32073812,185.71,185.67,42.56850557]
[1755294408621,4.29893365,185.7,185.67,47.95436342]
[1755294408812,0.68,185.7,185.67,47.95436342]
[1755294409016,3.62058902,185.69,185.67,47.95436342]
[1755294409340,0.68,185.7,185.67,47.95436342]
[1755294409512,3.62090147,185.69,185.67,47.98436342]
[1755294409713,0.68,185.7,185.67,47.98436342]
[1755294410010,3.62090247,185.69,185.67,47.98436342]
[1755294410212,0.68,185.7,185.67,47.98436342]
[1755294410436,3.62123265,185.69,185.67,47.98436342]
[1755294410634,0.68,185.7,185.67,47.98436342]
[1755294410841,3.62123265,185.69,185.67,47.98436342]
[1755294411142,0.68,185.7,185.67,47.98436342]
[1755294411340,3.62123365,185.69,185.67,47.98436342]
[1755294411519,0.68,185.7,185.67,47.98436342]
[1755294411723,3.62158119,185.69,185.67,47.98436342]
[1755294412044,0.68,185.7,185.67,47.98436342]
[1755294412339,3.62158119,185.69,185.68,5.15850557]
[1755294412543,0.68,185.72,185.68,5.15850557]
[1755294412730,3.62179704,185.71,185.69,38.08]
[1755294413037,0.68,185.72,185.69,38.08]
[1755294413038,3.62179704,185.7,185.69,38.08]
[1755294413230,3.62179704,185.7,185.69,43.46531961]
[1755294417173,7.64833074,185.7,185.69,43.46531961]
[1755294418248,3.62179704,185.7,185.69,43.46531961]
[1755294419868,7.64973056,185.7,185.69,43.46531961]
[1755294420076,3.62179704,185.7,185.69,43.46531961]
[1755294420654,3.62179704,185.7,185.69,46.3253798]
[1755294422593,3.62179704,185.7,185.69,43.46531961]
[1755294423160,3.62557175,185.7,185.69,43.46531961]
[1755294423798,0.68,185.72,185.69,43.46531961]
[1755294424090,3.62583503,185.71,185.69,43.46531961]
[1755294424269,3.62583503,185.7,185.69,43.46531961]
[1755294424583,0.68,185.72,185.69,43.46531961]
[1755294424768,7.65453276,185.71,185.69,43.46531961]
[1755294424973,3.62582686,185.7,185.69,43.46531961]
[1755294426278,0.68,185.72,185.69,43.46531961]
[1755294426481,3.62581334,185.71,185.69,43.46531961]
[1755294426785,0.68,185.72,185.69,43.46531961]
[1755294427085,3.62581334,185.71,185.69,43.46531961]
[1755294427279,3.62581334,185.7,185.69,43.46531961]
[1755294427663,0.68,185.72,185.69,43.46531961]
[1755294427864,3.62586104,185.71,185.69,43.46531961]
[1755294428083,3.62586104,185.7,185.69,43.46531961]
[1755294428256,3.62586104,185.7,185.69,43.44531961]
[1755294428456,4.30586104,185.7,185.69,43.44531961]
[1755294428679,3.62586104,185.7,185.69,43.44531961]
[1755294430373,8.33491352,185.7,185.69,43.44531961]
[1755294431157,8.33491352,185.7,185.69,38.06]
[1755294436689,8.33620475,185.7,185.69,38.08]
[1755294443569,8.33620475,185.7,185.69,38.11]
[1755294452897,26.0,185.68,185.67,0.03]
[1755294453089,36.51626494,185.68,185.67,0.03]
[1755294453294,41.05506812,185.68,185.67,0.03]
[1755294453496,41.76506812,185.68,185.67,0.03]
[1755294453804,42.61187459,185.68,185.67,0.03]
[1755294454308,47.14932352,185.68,185.67,0.03]
[1755294455121,44.28926333,185.68,185.67,0.03]
[1755294455289,47.14932352,185.68,185.67,0.03]
[1755294455687,42.61187459,185.68,185.67,0.03]
[1755294456400,95.77809016,185.68,185.67,0.03]
[1755294456683,2.86006019,185.67,185.66,0.03]
[1755294456899,10.51626494,185.67,185.66,0.03]
[1755294457086,11.22626494,185.67,185.66,0.03]
[1755294457486,16.61216465,185.67,185.66,0.03]
[1755294457707,22.66684326,185.67,185.66,0.03]
[1755294458297,16.61216465,185.67,185.66,0.03]
[1755294458888,31.71838022,185.67,185.66,0.03]
[1755294459088,69.79838022,185.67,185.66,0.03]
[1755294459709,31.71838022,185.67,185.66,0.03]
[1755294459902,69.79838022,185.67,185.66,0.03]
[1755294460526,69.77838022,185.67,185.66,0.03]
[1755294460728,79.77838022,185.67,185.66,0.03]
[1755294461219,87.97737115,185.67,185.66,0.03]
[1755294462322,87.97245339,185.67,185.66,0.03]
[1755294462498,25.10621557,185.65,185.64,0.03]
[1755294462821,73.70248051,185.65,185.64,0.03]
[1755294463023,74.41248051,185.65,185.64,0.03]
[1755294463401,76.57259951,185.65,185.64,0.03]
[1755294464614,81.95907944,185.65,185.64,0.03]
[1755294465025,25.10621557,185.64,185.63,0.03]
[1755294465323,36.32248051,185.64,185.63,0.03]
[1755294465894,42.34891939,185.64,185.63,0.03]